Department Family,Entity,Date,Expense Type,Expense Area,Supplier,Amount in Sterling,System Reference
BEIS,Companies House,26/10/2016,ABS-Support + Maintenance     ,Procurement                   ,Advanced Business Solutions             ,"6,484.10",559753
BEIS,Companies House,26/10/2016,ABS-Support + Maintenance     ,Procurement                   ,Advanced Business Solutions             ,"6,484.10",562961
BEIS,Companies House,04/10/2016,Agency/Contract Staff         ,IT Services                   ,Spring Technology Staffing Services Ltd ,"2,632.32",563637
BEIS,Companies House,11/10/2016,Agency/Contract Staff         ,IT Services                   ,Spring Technology Staffing Services Ltd ,"2,632.32",563900
BEIS,Companies House,18/10/2016,Agency/Contract Staff         ,IT Services                   ,Spring Technology Staffing Services Ltd ,"2,632.32",564165
BEIS,Companies House,27/10/2016,Agency/Contract Staff         ,IT Services                   ,Spring Technology Staffing Services Ltd ,"2,632.32",564410
BEIS,Companies House,04/10/2016,Agency/Contract Staff         ,Product,Capita Resourcing                       ,"2,763.18",563507
BEIS,Companies House,04/10/2016,Agency/Contract Staff         ,Product,Capita Resourcing                       ,"2,759.10",563617
BEIS,Companies House,07/10/2016,Agency/Contract Staff         ,Product,Capita Resourcing                       ,"2,763.18",563694
BEIS,Companies House,07/10/2016,Agency/Contract Staff         ,Product,Capita Resourcing                       ,"2,759.10",563695
BEIS,Companies House,12/10/2016,Agency/Contract Staff         ,Product,Capita Resourcing                       ,"2,868.00",563952
BEIS,Companies House,12/10/2016,Agency/Contract Staff         ,Product,Capita Resourcing                       ,"2,763.18",563953
BEIS,Companies House,12/10/2016,Agency/Contract Staff         ,Product,Capita Resourcing                       ,"2,759.10",563954
BEIS,Companies House,24/10/2016,Agency/Contract Staff         ,Product,Capita Resourcing                       ,"2,868.00",564258
BEIS,Companies House,24/10/2016,Agency/Contract Staff         ,Product,Capita Resourcing                       ,"2,759.10",564260
BEIS,Companies House,24/10/2016,Agency/Contract Staff         ,Product,Capita Resourcing                       ,"2,763.18",564262
BEIS,Companies House,27/10/2016,Agency/Contract Staff         ,Product,Capita Resourcing                       ,"2,759.10",564399
BEIS,Companies House,27/10/2016,Agency/Contract Staff         ,Product,Capita Resourcing                       ,"2,868.00",564400
BEIS,Companies House,27/10/2016,Agency/Contract Staff         ,Product,Capita Resourcing                       ,"2,763.18",564402
BEIS,Companies House,24/10/2016,Agency/Contract Staff         ,Project Centre                ,Capita Resourcing                       ,"7,185.17",564255
BEIS,Companies House,24/10/2016,Agency/Contract Staff         ,Project Centre                ,Capita Resourcing                       ,"8,254.20",564256
BEIS,Companies House,27/10/2016,Agency/Contract Staff         ,Project Centre                ,Capita Resourcing                       ,"2,993.82",564401
BEIS,Companies House,07/10/2016,Agency/Contract Staff         ,Project Centre                ,Hays Specialist Recruitment Ltd         ,"2,376.00",563689
BEIS,Companies House,13/10/2016,Agency/Contract Staff         ,Project Centre                ,Hays Specialist Recruitment Ltd         ,"2,376.00",564091
BEIS,Companies House,20/10/2016,Agency/Contract Staff         ,Project Centre                ,Hays Specialist Recruitment Ltd         ,"2,376.00",564200
BEIS,Companies House,27/10/2016,Agency/Contract Staff         ,Project Centre                ,Hays Specialist Recruitment Ltd         ,"2,376.00",564403
BEIS,Companies House,04/10/2016,Agency/Contract Staff         ,Software Engineering          ,Capita Resourcing                       ,"4,284.70",563615
BEIS,Companies House,04/10/2016,Agency/Contract Staff         ,Software Engineering          ,Capita Resourcing                       ,"2,879.10",563616
BEIS,Companies House,07/10/2016,Agency/Contract Staff         ,Software Engineering          ,Capita Resourcing                       ,"3,985.34",563690
BEIS,Companies House,07/10/2016,Agency/Contract Staff         ,Software Engineering          ,Capita Resourcing                       ,"4,623.72",563691
BEIS,Companies House,07/10/2016,Agency/Contract Staff         ,Software Engineering          ,Capita Resourcing                       ,"5,758.20",563692
BEIS,Companies House,07/10/2016,Agency/Contract Staff         ,Software Engineering          ,Capita Resourcing                       ,"2,868.00",563693
BEIS,Companies House,07/10/2016,Agency/Contract Staff         ,Software Engineering          ,Capita Resourcing                       ,"7,435.80",563696
BEIS,Companies House,12/10/2016,Agency/Contract Staff         ,Software Engineering          ,Capita Resourcing                       ,"2,344.32",563951
BEIS,Companies House,12/10/2016,Agency/Contract Staff         ,Software Engineering          ,Capita Resourcing                       ,"2,879.10",563955
BEIS,Companies House,24/10/2016,Agency/Contract Staff         ,Software Engineering          ,Capita Resourcing                       ,"1,857.74",564257
BEIS,Companies House,24/10/2016,Agency/Contract Staff         ,Software Engineering          ,Capita Resourcing                       ,"4,957.20",564259
BEIS,Companies House,24/10/2016,Agency/Contract Staff         ,Software Engineering          ,Capita Resourcing                       ,"2,879.10",564261
BEIS,Companies House,27/10/2016,Agency/Contract Staff         ,Software Engineering          ,Capita Resourcing                       ,"2,478.60",564398
BEIS,Companies House,27/10/2016,Agency/Contract Staff         ,Software Engineering          ,Capita Resourcing                       ,"2,322.18",564406
BEIS,Companies House,07/10/2016,Agency/Contract Staff         ,Software Engineering          ,FDM GROUP                               ,"7,128.00",563783
BEIS,Companies House,07/10/2016,Agency/Contract Staff         ,Software Engineering          ,FDM GROUP                               ,"6,480.00",563784
BEIS,Companies House,07/10/2016,Agency/Contract Staff         ,Software Engineering          ,Hays Specialist Recruitment Ltd         ,"2,256.00",563688
BEIS,Companies House,04/10/2016,Agency/Contract Staff         ,Software Engineering          ,Spring Technology Staffing Services Ltd ,"2,958.00",563636
BEIS,Companies House,04/10/2016,Agency/Contract Staff         ,Software Engineering          ,Spring Technology Staffing Services Ltd ,"2,958.00",563638
BEIS,Companies House,17/10/2016,Agency/Contract Staff         ,Software Engineering          ,Spring Technology Staffing Services Ltd ,"2,958.00",564139
BEIS,Companies House,17/10/2016,Agency/Contract Staff         ,Software Engineering          ,Spring Technology Staffing Services Ltd ,"2,632.32",564140
BEIS,Companies House,20/10/2016,Agency/Contract Staff         ,Software Engineering          ,Spring Technology Staffing Services Ltd ,"2,105.86",564202
BEIS,Companies House,24/10/2016,Agency/Contract Staff         ,Software Engineering          ,Spring Technology Staffing Services Ltd ,"1,974.24",564327
BEIS,Companies House,24/10/2016,Agency/Contract Staff         ,Software Engineering          ,Spring Technology Staffing Services Ltd ,"2,418.44",564328
BEIS,Companies House,24/10/2016,Agency/Contract Staff         ,Software Engineering          ,Spring Technology Staffing Services Ltd ,"1,774.80",564329
BEIS,Companies House,24/10/2016,Agency/Contract Staff         ,Software Engineering          ,Spring Technology Staffing Services Ltd ,"2,632.32",564330
BEIS,Companies House,24/10/2016,Agency/Contract Staff         ,Software Engineering          ,Spring Technology Staffing Services Ltd ,"2,632.32",564331
BEIS,Companies House,24/10/2016,Agency/Contract Staff         ,Software Engineering          ,Spring Technology Staffing Services Ltd ,"2,366.40",564332
BEIS,Companies House,24/10/2016,Agency/Contract Staff         ,Software Engineering          ,Spring Technology Staffing Services Ltd ,"2,632.32",564333
BEIS,Companies House,26/10/2016,Agency/Contract Staff         ,Software Engineering          ,Spring Technology Staffing Services Ltd ,"2,632.32",564369
BEIS,Companies House,11/10/2016,Agency/Contract Staff         ,Software Engineering          ,TRIAD RESOURCING                        ,"13,440.00",563871
BEIS,Companies House,04/10/2016,C.H. Adjudicator              ,Late Filing Penalties,"Personal Expenses, Name Withheld","2,259.46",563614
BEIS,Companies House,11/10/2016,C.H. Adjudicator              ,Late Filing Penalties,"Personal Expenses, Name Withheld","2,231.90",563872
BEIS,Companies House,31/10/2016,C.H. Adjudicator              ,Late Filing Penalties,"Personal Expenses, Name Withheld","1,698.70",564524
BEIS,Companies House,04/10/2016,Car parking contract          ,Northern Ireland              ,Colliers CRE                            ,"1,005.00",563606
BEIS,Companies House,26/10/2016,CE Additions This Year        ,IT Services                   ,INSIGHT DIRECT (UK) LTD                 ,"36,624.66",564361
BEIS,Companies House,27/10/2016,CE Additions This Year        ,IT Services                   ,INSIGHT DIRECT (UK) LTD                 ,"8,246.00",564391
BEIS,Companies House,27/10/2016,CE Additions This Year        ,IT Services                   ,INSIGHT DIRECT (UK) LTD                 ,"7,420.00",564405
BEIS,Companies House,05/10/2016,Civil Service Learning        ,Training                      ,CSL-KPMG LLP                            ,"2,086.00",563536
BEIS,Companies House,27/10/2016,Civil Service Learning        ,Training                      ,THE HAY GROUP MANAGEMENT LTD            ,"2,176.00",564367
BEIS,Companies House,04/10/2016,Cloud Services                ,IT Services                   ,Amazon Web Services                     ,"25,557.00",563622
BEIS,Companies House,11/10/2016,Consultants Computer          ,Late Filing Penalties,Hays Specialist Recruitment Ltd         ,807.68,563870
BEIS,Companies House,13/10/2016,Consultants Computer          ,Late Filing Penalties,Hays Specialist Recruitment Ltd         ,807.68,564090
BEIS,Companies House,26/10/2016,Consultants Management        ,HR Service delivery           ,HMRC Accounts Receivable                ,"3,044.80",562581
BEIS,Companies House,05/10/2016,Courier Other                 ,Northern Ireland              ,APOLLO DISTRIBUTION SOLUTIONS LTD       ,985.00,563629
BEIS,Companies House,26/10/2016,Data Tel Bills&ISP managed ser,Procurement                   ,Virgin Media Business                   ,"2,049.10",564190
BEIS,Companies House,18/10/2016,Electricity                   ,Building Services             ,E D F ENERGY CUSTOMERS PLC              ,"40,995.40",564123
BEIS,Companies House,20/10/2016,Electricity                   ,Edinburgh                     ,Scottish Hydro Electric                 ,618.90,564171
BEIS,Companies House,20/10/2016,Electricity                   ,Northern Ireland              ,Power NI                                ,923.62,564173
BEIS,Companies House,11/10/2016,Enforcement,Late Filing Penalties,AKINIKA DEBT RECOVERY LIMITED           ,"34,652.64",563875
BEIS,Companies House,11/10/2016,Enforcement,Late Filing Penalties,AKINIKA DEBT RECOVERY LIMITED           ,517.00,563875
BEIS,Companies House,11/10/2016,Enforcement,Late Filing Penalties,AKINIKA DEBT RECOVERY LIMITED           ,"1,313.31",563875
BEIS,Companies House,11/10/2016,Enforcement,Late Filing Penalties,AKINIKA DEBT RECOVERY LIMITED           ,"2,579.07",563875
BEIS,Companies House,20/10/2016,Environmental costs           ,Building Services             ,Air Management Systems (GB) LLP         ,"1,575.00",564186
BEIS,Companies House,20/10/2016,External managed services     ,Development Strategy          ,Epimorphics                             ,"3,265.70",564174
BEIS,Companies House,05/10/2016,External managed services     ,Project Centre                ,Methods Digital Limited                 ,"1,275.00",563357
BEIS,Companies House,20/10/2016,External managed services     ,Software Engineering          ,BRAMBLE HUB LIMITED                     ,"33,957.40",563782
BEIS,Companies House,11/10/2016,Gazette Notices               ,CPES                          ,Stationery Office                       ,"7,708.99",563869
BEIS,Companies House,11/10/2016,Gazette Notices               ,CPES                          ,Stationery Office                       ,"7,708.99",563877
BEIS,Companies House,18/10/2016,Gazette Notices               ,CPES                          ,Stationery Office                       ,940.27,564172
BEIS,Companies House,11/10/2016,General Advertising           ,Communications                ,A McLay & Company Ltd                   ,"2,064.26",563685
BEIS,Companies House,11/10/2016,General Advertising           ,Communications                ,A McLay & Company Ltd                   ,525.37,563686
BEIS,Companies House,27/10/2016,General Advertising           ,Communications                ,A McLay & Company Ltd                   ,"11,254.46",564368
BEIS,Companies House,26/10/2016,Hardware &SoftwareMaintenance ,Procurement                   ,AFD Software Limited                    ,"19,648.00",564354
BEIS,Companies House,26/10/2016,Hardware &SoftwareMaintenance ,Procurement                   ,Computacenter (GCAT)                    ,"130,486.72",564360
BEIS,Companies House,20/10/2016,Hardware &SoftwareMaintenance ,Procurement                   ,EDM Group Ltd                           ,"25,282.25",564194
BEIS,Companies House,11/10/2016,Hardware &SoftwareMaintenance ,Procurement                   ,SOCIAL SIGN IN                          ,"17,600.00",563632
BEIS,Companies House,31/10/2016,Health promotion working group,Health and Wellbeing          ,Relaxa UK Ltd                           ,689.00,564394
BEIS,Companies House,17/10/2016,Hospitality                   ,Procurement                   ,Elior UK plc                            ,"1,144.20",564126
BEIS,Companies House,07/10/2016,IDS                           ,Customer Operations Team      ,City Sprint                             ,"2,474.49",563697
BEIS,Companies House,11/10/2016,Internal Audit costs          ,Organisational Overheads      ,GOVERNMENT INTERNAL AUDIT AGENCY        ,"48,750.00",563876
BEIS,Companies House,11/10/2016,Legal Costs General,CPES                          ,GOVERNMENT LEGAL DEPARTMENT             ,"100,140.02",558978
BEIS,Companies House,18/10/2016,Legal Costs General,Legal Services                ,GOVERNMENT LEGAL DEPARTMENT             ,"16,679.82",561957
BEIS,Companies House,13/10/2016,Legal Costs General,Legal Services                ,GOVERNMENT LEGAL DEPARTMENT             ,533.76,563873
BEIS,Companies House,13/10/2016,Micrographics                 ,Customer Services/London      ,Transmedia Technology Ltd               ,"3,586.36",563950
BEIS,Companies House,17/10/2016,Office Machinery Maintenance  ,Procurement                   ,Neopost Limited                         ,853.34,564124
BEIS,Companies House,27/10/2016,Office Machinery Purchase     ,Procurement                   ,Neopost Limited                         ,884.65,564404
BEIS,Companies House,26/10/2016,Outside Market Research       ,Customer Services/London      ,IFF RESEARCH LTD                        ,"36,900.00",564314
BEIS,Companies House,20/10/2016,Postage Costs,Communications                ,A McLay & Company Ltd                   ,"1,159.30",563699
BEIS,Companies House,04/10/2016,Postage Costs,Customer Operations Team      ,Royal Mail                              ,"9,552.83",563612
BEIS,Companies House,11/10/2016,Postage Costs,Customer Operations Team      ,Royal Mail                              ,"9,807.95",563878
BEIS,Companies House,18/10/2016,Postage Costs,Customer Operations Team      ,Royal Mail                              ,"12,023.11",564164
BEIS,Companies House,24/10/2016,Postage Costs,Customer Operations Team      ,Royal Mail                              ,"9,564.57",564334
BEIS,Companies House,31/10/2016,Postage Costs,Customer Operations Team      ,Royal Mail                              ,"10,102.67",564529
BEIS,Companies House,20/10/2016,Postage Costs,Edinburgh                     ,Royal Mail                              ,"1,245.86",564170
BEIS,Companies House,24/10/2016,Postage Costs,Northern Ireland              ,Neopost Limited                         ,500.00,564318
BEIS,Companies House,24/10/2016,Postage Costs,Northern Ireland              ,Neopost Limited                         ,500.00,564319
BEIS,Companies House,05/10/2016,Print and Mailing Contract    ,Late Filing Penalties,A McLay & Company Ltd                   ,"2,395.86",563012
BEIS,Companies House,05/10/2016,Print and Mailing Contract    ,Late Filing Penalties,A McLay & Company Ltd                   ,"2,007.44",563013
BEIS,Companies House,05/10/2016,Print and Mailing Contract    ,Late Filing Penalties,A McLay & Company Ltd                   ,"2,430.02",563014
BEIS,Companies House,05/10/2016,Print and Mailing Contract    ,Late Filing Penalties,A McLay & Company Ltd                   ,"1,939.87",563015
BEIS,Companies House,05/10/2016,Print and Mailing Contract    ,Late Filing Penalties,A McLay & Company Ltd                   ,"2,234.54",563016
BEIS,Companies House,12/10/2016,Print and Mailing Contract    ,Procurement                   ,WILLIAMS LEA                            ,"328,164.80",563945
BEIS,Companies House,27/10/2016,Professional Fees             ,IT Services                   ,DEVOPS GUYS LIMITED                     ,"1,200.00",564449
BEIS,Companies House,27/10/2016,Professional Fees             ,IT Services                   ,DEVOPS GUYS LIMITED                     ,"5,200.00",564450
BEIS,Companies House,27/10/2016,Professional Fees             ,IT Services                   ,DEVOPS GUYS LIMITED                     ,"2,400.00",564452
BEIS,Companies House,27/10/2016,Professional Fees             ,IT Services                   ,DEVOPS GUYS LIMITED                     ,"4,800.00",564453
BEIS,Companies House,27/10/2016,Professional Fees             ,IT Services                   ,Gradian Systems                         ,"8,150.00",563527
BEIS,Companies House,11/10/2016,Professional Fees             ,IT Services                   ,ITELLIGENCE BUSINESS SOLUTIONS (UK) LTD ,"5,000.00",563322
BEIS,Companies House,11/10/2016,Professional Fees             ,IT Services                   ,ITELLIGENCE BUSINESS SOLUTIONS (UK) LTD ,"1,075.70",563526
BEIS,Companies House,04/10/2016,Professional Fees             ,IT Services                   ,ITELLIGENCE BUSINESS SOLUTIONS (UK) LTD ,"6,410.00",563634
BEIS,Companies House,12/10/2016,Professional Fees             ,IT Services                   ,ITELLIGENCE BUSINESS SOLUTIONS (UK) LTD ,"7,786.05",563983
BEIS,Companies House,04/10/2016,Professional Fees             ,IT Services                   ,Konica Minolta Business Solutions (wales,"2,000.00",563607
BEIS,Companies House,05/10/2016,Professional Fees             ,IT Services                   ,Risual Limited                          ,"3,800.00",563618
BEIS,Companies House,13/10/2016,Professional Fees             ,Software Engineering          ,NCC Group Plc                           ,"2,200.00",563613
BEIS,Companies House,31/10/2016,Professional Fees             ,Software Engineering          ,SALESFORCE.COM EMEA LTD                 ,"2,800.00",564515
BEIS,Companies House,20/10/2016,Relocation Expenses           ,Strategy & Policy             ,"Personal Expenses, Name Withheld",588.00,564203
BEIS,Companies House,12/10/2016,Rent                          ,Edinburgh                     ,KNIGHT FRANK                            ,"58,396.25",563986
BEIS,Companies House,04/10/2016,Rent                          ,Northern Ireland              ,Colliers CRE                            ,"24,405.30",563605
BEIS,Companies House,17/10/2016,Restaurant Services           ,Procurement                   ,Elior UK plc                            ,"14,641.33",564125
BEIS,Companies House,07/10/2016,Rolling Maint.&minor contracts,Building Services             ,CENTRAL ROOFING & BUILDING SERVICES LTD ,"4,549.69",563677
BEIS,Companies House,05/10/2016,Rolling Maint.&minor contracts,Building Services             ,GK The Flooring Specialist              ,"2,581.20",563635
BEIS,Companies House,07/10/2016,Secondments                   ,Integrity Analysis            ,Department for Business Innovation Skill,"17,864.85",563779
BEIS,Companies House,20/10/2016,Security                      ,Accounting                    ,Loomis Uk Ltd                           ,676.47,564197
BEIS,Companies House,12/10/2016,Service charges               ,Edinburgh                     ,KNIGHT FRANK                            ,"11,775.63",563986
BEIS,Companies House,04/10/2016,Service charges               ,Northern Ireland              ,Colliers CRE                            ,"6,192.30",563605
BEIS,Companies House,11/10/2016,Software as a service         ,IT Services                   ,Computacenter (GCAT)                    ,"111,394.66",563662
BEIS,Companies House,13/10/2016,Software as a service         ,IT Services                   ,Computacenter (GCAT)                    ,"18,517.86",563911
BEIS,Companies House,24/10/2016,Software Licence              ,Accounting                    ,SAA CONSULTANTS LIMITED                 ,"4,320.00",564312
BEIS,Companies House,11/10/2016,Software Licence              ,IT Services                   ,Computacenter (GCAT)                    ,"7,279.81",563662
BEIS,Companies House,13/10/2016,Software Licence              ,IT Services                   ,Computacenter (GCAT)                    ,"1,639.15",563911
BEIS,Companies House,26/10/2016,Software Licence              ,IT Services                   ,Computacenter (GCAT)                    ,"21,035.95",564360
BEIS,Companies House,27/10/2016,Software Licence              ,IT Services                   ,Gradian Systems                         ,"12,700.00",563527
BEIS,Companies House,04/10/2016,Software Licence              ,IT Services                   ,Konica Minolta Business Solutions (wales,"3,500.00",561876
BEIS,Companies House,17/10/2016,Subscriptions                 ,Organisational Overheads      ,XBRL UK Ltd                             ,"5,000.00",564132
BEIS,Companies House,04/10/2016,T and S for usability project ,Product,PEOPLE FOR RESEARCH                     ,780.00,563510
BEIS,Companies House,04/10/2016,T and S for usability project ,Product,PEOPLE FOR RESEARCH                     ,576.00,563602
BEIS,Companies House,24/10/2016,T and S for usability project ,Product,PEOPLE FOR RESEARCH                     ,675.00,564313
BEIS,Companies House,24/10/2016,T and S for usability project ,Project Centre                ,PEOPLE FOR RESEARCH                     ,"1,065.00",564316
BEIS,Companies House,05/10/2016,Taxi - staff                  ,All Areas,Premier Cars (Cardiff) Ltd              ,"2,055.40",563631
BEIS,Companies House,12/10/2016,Telecom Calls                 ,Procurement                   ,British Telecom PLC                     ,"29,343.06",563881
BEIS,Companies House,11/10/2016,Telecom Mobile Phone charges  ,Procurement                   ,TELEFONICA UK LTD                       ,598.09,563898
BEIS,Companies House,11/10/2016,Telecom Mobile Phone charges  ,Procurement                   ,TELEFONICA UK LTD                       ,581.50,563899
BEIS,Companies House,24/10/2016,Telecom moves and changes     ,Procurement                   ,P J Telecom Services                    ,740.00,564201
BEIS,Companies House,07/10/2016,Telecom Rental and calls      ,Procurement                   ,Vodafone Ltd                            ,927.29,563682
BEIS,Companies House,12/10/2016,Telephone Costs,Procurement                   ,British Telecom PLC                     ,"4,410.43",563896
BEIS,Companies House,17/10/2016,Telephone Costs,Procurement                   ,British Telecom PLC                     ,"11,148.29",564087
BEIS,Companies House,26/10/2016,Training External             ,Training                      ,Interactive LS                          ,"6,561.40",564317
BEIS,Companies House,17/10/2016,Training External             ,Training                      ,KAIROS LONDON LTD                       ,"7,603.00",564122
BEIS,Companies House,11/10/2016,Training External             ,Training                      ,NICHOLSON MCBRIDE LIMITED               ,"1,000.00",563910
BEIS,Companies House,11/10/2016,Training External             ,Training                      ,QA Ltd                                  ,"1,125.75",563698
BEIS,Companies House,06/10/2016,Training External             ,Training                      ,Rospa,"1,805.00",563465
BEIS,Companies House,28/10/2016,Training External             ,Training                      ,Rospa,950.00,564477
BEIS,Companies House,04/10/2016,Training External             ,Training                      ,RUTH STEGGLES THE FRESH AIR COACH       ,"1,200.00",563538
BEIS,Companies House,26/10/2016,Translation                   ,Strategy & Policy             ,FCO Services  Translation & Interpreting,"1,046.04",564353
BEIS,Companies House,04/10/2016,WAN rental                    ,Procurement                   ,Vodafone Ltd                            ,"6,781.62",563630
BEIS,Companies House,07/10/2016,Water                         ,Building Services             ,Dwr Cymru Welsh Water                   ,"2,678.99",563678
